Workbook

Sheet FEI Bubble
A2: Please fill the green colored cells.
B3: Please fill the green colored cells.
C4: Model | D4: AAA
C5: Size | D5: AA27
B7: Impeller Dia (inches) | D7: 27
B8: Outlet Area (ft2) | D8: 7.92
B9: Max Catalog Speed (RPM) | D9: 1623
B10: Test Speed (RPM) | D10: 1100
C11: Drive type | D11: V-Belt
B13: Fan Category | D13: Axial Inline
C14: FEI Pressure Basis | D14: =VLOOKUP($D$13,'AMCA 208 Tables'!A17:F27,6,FALSE) -> Total
B15: Reference Target Efficiency | D15: =IF(D14="Total", 0.66, 0.6) -> 0.66
B16: Minimum FEI Level | D16: 1.1 | K16: ="Reference Target Efficiency "&D15*100&"%" -> Reference Target Efficiency 66%
K17: ="Allowable Selection Range for FEI = " & TEXT($D$16, "0.00") & " per AMCA 208" -> Allowable Selection Range for FEI = 1.10 per AMCA 208 | O17: ="Maximum Allowable Speed for FEI= " & TEXT($D$16, "0.00") -> Maximum Allowable Speed for FEI= 1.10 | R17: Fan Curves at Maximum Speeds
A18: Air Performance at Test Speed | D18: Calculated | G18: Plotted Pressure | O18: Rmax= | P18: =MAX(K20:K130) -> 1623 | R18: Max Structural Speed | S18: =D9 -> 1623
A19: Airflow (CFM) | B19: Test Static Pressure (in. wg) | C19: Fan BHP | D19: Total Pressure (in. wg) | E19: SE | F19: TE | G19: =IF($D$14="Total", "Total Pressure (in.wg)","Static Pressure (in.wg)") -> Total Pressure (in.wg) | H19: Airflow (CFM) | I19: =IF($D$14="Total", "Total Pressure (in.wg)","Static Pressure (in.wg)") -> Total Pressure (in.wg) | J19: Fan BHP at Test Speed | K19: RPM | L19: Qmax | M19: =IF($D$14="Total","Ptmax",IF($D$14="Static","Psmax","Not regulated")) -> Ptmax | N19: BHPmax | O19: CFM | P19: =IF($D$14="Total","Pt",IF($D$14="No","Ps","Pressure")) -> Pt | Q19: K | R19: CFM | S19: =IF($D$14="Total","Pt",IF($D$14="No","Ps","Pressure")) -> Pt
A20: 17210 | B20: 0.019 | C20: 3.072 | D20: =IF(ISNUMBER(A20),B20+(A20/$D$8/4005)^2,"") -> 0.3133786685 | E20: =IF(ISNUMBER(A20),A20*B20/6343/C20,"") -> 0.01678102748 | F20: =IF(ISNUMBER(A20),A20*D20/6343/C20,"") -> 0.276779792 | G20: =IF($D$14="Total",D20,B20) -> 0.3133786685 | H20: =A20 -> 17210 | I20: =IF($D$14="Total",D20,B20) -> 0.3133786685 | J20: =C20 -> 3.072 | K20: =IF(H20<>0,RPM_AMCA208(H20,I20,J20,$D$10,$D$9,$D$15,$D$11,$D$16),0) -> 975 | L20: =IF(ISNUMBER(H20),IF(H20=0,0,H20*(K20/$D$10)^1),"") -> 15254.31818 | M20: =IF(ISNUMBER(H20),IF(H20=0,0,I20*(K20/$D$10)^2),"") -> 0.2462029725 | N20: =IF(ISNUMBER(H20),IF(H20=0,0,J20*(K20/$D$10)^3),"") -> 2.139227648 | O20: =IF(ISNUMBER(A20),A20*($P$18/$D$10)^1,"") -> 25392.57273 | P20: =IF(ISNUMBER(A20),G20*($P$18/$D$10)^2,"") -> 0.6822147427 | Q20: =IF(ISNUMBER(H20),IF(H20=0,0,I20/H20^2),"") -> 1.058053651e-09 | R20: =IF(ISNUMBER(A20),A20*($S$18/$D$10)^1,"") -> 25392.57273 | S20: =IF(ISNUMBER(A20),G20*($S$18/$D$10)^2,"") -> 0.6822147427
A21: 15611 | B21: 0.865 | C21: 4.236 | D21: 1.107217793 | E21: 0.5025695461 | F21: 0.6432993571 | G21: =IF($D$14="Total",D21,B21) -> 1.107217793 | H21: =H20+(H30-H20)*0.1 -> 17050.1 | I21: =I20+(I30-I20)*0.1 -> 0.392762581 | J21: =J20+(J30-J20)*0.1 -> 3.1884 | K21: =IF(H21<>0,RPM_AMCA208(H21,I21,J21,$D$10,$D$9,$D$15,$D$11,$D$16),0) -> 1018 | L21: =IF(ISNUMBER(H21),IF(H21=0,0,H21*(K21/$D$10)^1),"") -> 15779.09255 | M21: =IF(ISNUMBER(H21),IF(H21=0,0,I21*(K21/$D$10)^2),"") -> 0.3363878421 | N21: =IF(ISNUMBER(H21),IF(H21=0,0,J21*(K21/$D$10)^3),"") -> 2.527191074 | O21: 23033.32091 | P21: 2.410375619 | Q21: =IF(ISNUMBER(H21),IF(H21=0,0,I21/H21^2),"") -> 1.351065002e-09 | R21: 23033.32091 | S21: 2.410375619
A22: 13763 | B22: 1.591 | C22: 5.132 | D22: 1.779265532 | E22: 0.6726698004 | F22: 0.7522678757 | G22: 1.779265532 | H22: =H20+(H30-H20)*0.2 -> 16890.2 | I22: =I20+(I30-I20)*0.2 -> 0.4721464935 | J22: =J20+(J30-J20)*0.2 -> 3.3048 | K22: =IF(H22<>0,RPM_AMCA208(H22,I22,J22,$D$10,$D$9,$D$15,$D$11,$D$16),0) -> 1067 | L22: 16383.494 | M22: 0.4442426357 | N22: 3.01620173 | O22: 20306.68091 | P22: 3.873400774 | Q22: 1.655035007e-09 | R22: 20306.68091 | S22: 3.873400774
A23: 12350 | B23: 2.048 | C23: 5.568 | D23: 2.199592778 | E23: 0.7161483108 | F23: 0.7691575451 | G23: 2.199592778 | H23: =H20+(H30-H20)*0.3 -> 16730.3 | I23: =I20+(I30-I20)*0.3 -> 0.551530406 | J23: =J20+(J30-J20)*0.3 -> 3.4212 | K23: =IF(H23<>0,RPM_AMCA208(H23,I23,J23,$D$10,$D$9,$D$15,$D$11,$D$16),0) -> 1121 | L23: 17049.69664 | M23: 0.572789852 | N23: 3.620905959 | O23: 18221.86364 | P23: 4.788438946 | Q23: 1.9704345e-09 | R23: 18221.86364 | S23: 4.788438946
A24: 11033 | B24: 2.397 | C24: 5.895 | D24: 2.517985085 | E24: 0.7072665706 | F24: 0.7429648209 | G24: 2.517985085 | H24: =H20+(H30-H20)*0.4 -> 16570.4 | I24: =I20+(I30-I20)*0.4 -> 0.6309143185 | J24: =J20+(J30-J20)*0.4 -> 3.5376 | K24: =IF(H24<>0,RPM_AMCA208(H24,I24,J24,$D$10,$D$9,$D$15,$D$11,$D$16),0) -> 1182 | L24: 17805.648 | M24: 0.7284839143 | N24: 4.389177047 | O24: 16278.69 | P24: 5.481568209 | Q24: 2.297758596e-09 | R24: 16278.69 | S24: 5.481568209
A25: 9331 | B25: 2.708 | C25: 5.875 | D25: 2.794536829 | E25: 0.6780695892 | F25: 0.6997379761 | G25: 2.794536829 | H25: =H20+(H30-H20)*0.5 -> 16410.5 | I25: =I20+(I30-I20)*0.5 -> 0.710298231 | J25: =J20+(J30-J20)*0.5 -> 3.654 | K25: =IF(H25<>0,RPM_AMCA208(H25,I25,J25,$D$10,$D$9,$D$15,$D$11,$D$16),0) -> 1252 | L25: 18678.13273 | M25: 0.92016142 | N25: 5.387700856 | O25: 13767.46636 | P25: 6.083611985 | Q25: 2.637528166e-09 | R25: 13767.46636 | S25: 6.083611985
A26: 7673 | B26: 2.783 | C26: 5.617 | D26: 2.841516049 | E26: 0.5993482882 | F26: 0.611950334 | G26: 2.841516049 | H26: =H20+(H30-H20)*0.6 -> 16250.6 | I26: =I20+(I30-I20)*0.6 -> 0.7896821435 | J26: =J20+(J30-J20)*0.6 -> 3.7704 | K26: =IF(H26<>0,RPM_AMCA208(H26,I26,J26,$D$10,$D$9,$D$15,$D$11,$D$16),0) -> 1335 | L26: 19722.31909 | M26: 1.163133271 | N26: 6.739895584 | O26: 11321.16273 | P26: 6.185884155 | Q26: 2.990291434e-09 | R26: 11321.16273 | S26: 6.185884155
A27: 5951 | B27: 2.568 | C27: 4.863 | D27: 2.603198528 | E27: 0.4954342067 | F27: 0.5022249211 | G27: 2.603198528 | H27: =H20+(H30-H20)*0.7 -> 16090.7 | I27: =I20+(I30-I20)*0.7 -> 0.8690660559 | J27: =J20+(J30-J20)*0.7 -> 3.8868 | K27: =IF(H27<>0,RPM_AMCA208(H27,I27,J27,$D$10,$D$9,$D$15,$D$11,$D$16),0) -> 1433 | L27: 20961.79373 | M27: 1.474890567 | N27: 8.593156272 | O27: 8780.43 | P27: 5.667074987 | Q27: 3.356625673e-09 | R27: 8780.43 | S27: 5.667074987
A28: 4669 | B28: 2.453 | C28: 4.268 | D28: 2.474666679 | E28: 0.4230603263 | F28: 0.4267971025 | G28: 2.474666679 | H28: =H20+(H30-H20)*0.8 -> 15930.8 | I28: =I20+(I30-I20)*0.8 -> 0.9484499684 | J28: =J20+(J30-J20)*0.8 -> 4.0032 | K28: =IF(H28<>0,RPM_AMCA208(H28,I28,J28,$D$10,$D$9,$D$15,$D$11,$D$16),0) -> 1554 | L28: 22505.87564 | M28: 1.892914879 | N28: 11.28709748 | O28: 6888.897273 | P28: 5.387265507 | Q28: 3.737139036e-09 | R28: 6888.897273 | S28: 5.387265507
A29: 2994 | B29: 3.09 | C29: 4.889 | D29: 3.098909394 | E29: 0.2983290374 | F29: 0.2991892092 | G29: 3.098909394 | H29: =H20+(H30-H20)*0.9 -> 15770.9 | I29: =I20+(I30-I20)*0.9 -> 1.027833881 | J29: =J20+(J30-J20)*0.9 -> 4.1196 | K29: =IF(H29<>0,RPM_AMCA208(H29,I29,J29,$D$10,$D$9,$D$15,$D$11,$D$16),0) -> 1623 | L29: 23269.24609 | M29: 2.237559531 | N29: 13.23221514 | O29: 4417.510909 | P29: 6.746220747 | Q29: 4.132472512e-09 | R29: 4417.510909 | S29: 6.746220747
A30: 2005 | B30: 3.497 | C30: 5.364 | D30: =IF(ISNUMBER(A30),B30+(A30/$D$8/4005)^2,"") -> 3.50099552 | E30: =IF(ISNUMBER(A30),A30*B30/6343/C30,"") -> 0.206075579 | F30: =IF(ISNUMBER(A30),A30*D30/6343/C30,"") -> 0.206311032 | G30: 3.50099552 | H30: =A21 -> 15611 | I30: =IF($D$14="Total",D21,B21) -> 1.107217793 | J30: =C21 -> 4.236 | K30: =IF(H30<>0,RPM_AMCA208(H30,I30,J30,$D$10,$D$9,$D$15,$D$11,$D$16),0) -> 1623 | L30: 23033.32091 | M30: 2.410375619 | N30: 13.60609364 | O30: 2958.286364 | P30: 7.621548619 | Q30: 4.543302032e-09 | R30: 2958.286364 | S30: 7.621548619
H31: =H30+(H40-H30)*0.1 -> 15426.2 | I31: =I30+(I40-I30)*0.1 -> 1.174422567 | J31: =J30+(J40-J30)*0.1 -> 4.3256 | K31: =IF(H31<>0,RPM_AMCA208(H31,I31,J31,$D$10,$D$9,$D$15,$D$11,$D$16),0) -> 1623 | L31: 22760.65691 | M31: 2.556678134 | N31: 13.89389014
H32: =H30+(H40-H30)*0.2 -> 15241.4 | I32: =I30+(I40-I30)*0.2 -> 1.241627341 | J32: =J30+(J40-J30)*0.2 -> 4.4152 | K32: =IF(H32<>0,RPM_AMCA208(H32,I32,J32,$D$10,$D$9,$D$15,$D$11,$D$16),0) -> 1623 | L32: 22487.99291 | M32: 2.70298065 | N32: 14.18168664
H33: =H30+(H40-H30)*0.3 -> 15056.6 | I33: =I30+(I40-I30)*0.3 -> 1.308832115 | J33: =J30+(J40-J30)*0.3 -> 4.5048 | K33: =IF(H33<>0,RPM_AMCA208(H33,I33,J33,$D$10,$D$9,$D$15,$D$11,$D$16),0) -> 1623 | L33: 22215.32891 | M33: 2.849283165 | N33: 14.46948315
H34: =H30+(H40-H30)*0.4 -> 14871.8 | I34: =I30+(I40-I30)*0.4 -> 1.376036889 | J34: =J30+(J40-J30)*0.4 -> 4.5944 | K34: =IF(H34<>0,RPM_AMCA208(H34,I34,J34,$D$10,$D$9,$D$15,$D$11,$D$16),0) -> 1623 | L34: 21942.66491 | M34: 2.995585681 | N34: 14.75727965
H35: =H30+(H40-H30)*0.5 -> 14687 | I35: =I30+(I40-I30)*0.5 -> 1.443241663 | J35: =J30+(J40-J30)*0.5 -> 4.684 | K35: =IF(H35<>0,RPM_AMCA208(H35,I35,J35,$D$10,$D$9,$D$15,$D$11,$D$16),0) -> 1623 | L35: 21670.00091 | M35: 3.141888196 | N35: 15.04507616
H36: =H30+(H40-H30)*0.6 -> 14502.2 | I36: =I30+(I40-I30)*0.6 -> 1.510446437 | J36: =J30+(J40-J30)*0.6 -> 4.7736 | K36: =IF(H36<>0,RPM_AMCA208(H36,I36,J36,$D$10,$D$9,$D$15,$D$11,$D$16),0) -> 1623 | L36: 21397.33691 | M36: 3.288190712 | N36: 15.33287266
H37: =H30+(H40-H30)*0.7 -> 14317.4 | I37: =I30+(I40-I30)*0.7 -> 1.57765121 | J37: =J30+(J40-J30)*0.7 -> 4.8632 | K37: =IF(H37<>0,RPM_AMCA208(H37,I37,J37,$D$10,$D$9,$D$15,$D$11,$D$16),0) -> 1623 | L37: 21124.67291 | M37: 3.434493227 | N37: 15.62066916
H38: =H30+(H40-H30)*0.8 -> 14132.6 | I38: =I30+(I40-I30)*0.8 -> 1.644855984 | J38: =J30+(J40-J30)*0.8 -> 4.9528 | K38: =IF(H38<>0,RPM_AMCA208(H38,I38,J38,$D$10,$D$9,$D$15,$D$11,$D$16),0) -> 1623 | L38: 20852.00891 | M38: 3.580795743 | N38: 15.90846567
H39: =H30+(H40-H30)*0.9 -> 13947.8 | I39: =I30+(I40-I30)*0.9 -> 1.712060758 | J39: =J30+(J40-J30)*0.9 -> 5.0424 | K39: =IF(H39<>0,RPM_AMCA208(H39,I39,J39,$D$10,$D$9,$D$15,$D$11,$D$16),0) -> 1623 | L39: 20579.34491 | M39: 3.727098258 | N39: 16.19626217
H40: =A22 -> 13763 | I40: =IF($D$14="Total",D22,B22) -> 1.779265532 | J40: =C22 -> 5.132 | K40: =IF(H40<>0,RPM_AMCA208(H40,I40,J40,$D$10,$D$9,$D$15,$D$11,$D$16),0) -> 1623 | L40: 20306.68091 | M40: 3.873400774 | N40: 16.48405867
H41: =H40+(H50-H40)*0.1 -> 13621.7 | I41: =I40+(I50-I40)*0.1 -> 1.821298257 | J41: =J40+(J50-J40)*0.1 -> 5.1756 | K41: =IF(H41<>0,RPM_AMCA208(H41,I41,J41,$D$10,$D$9,$D$15,$D$11,$D$16),0) -> 1623 | L41: 20098.19918 | M41: 3.964904591 | N41: 16.62410251
H42: =H40+(H50-H40)*0.2 -> 13480.4 | I42: =I40+(I50-I40)*0.2 -> 1.863330981 | J42: =J40+(J50-J40)*0.2 -> 5.2192 | K42: =IF(H42<>0,RPM_AMCA208(H42,I42,J42,$D$10,$D$9,$D$15,$D$11,$D$16),0) -> 1623 | L42: 19889.71745 | M42: 4.056408408 | N42: 16.76414634
H43: =H40+(H50-H40)*0.3 -> 13339.1 | I43: =I40+(I50-I40)*0.3 -> 1.905363706 | J43: =J40+(J50-J40)*0.3 -> 5.2628 | K43: =IF(H43<>0,RPM_AMCA208(H43,I43,J43,$D$10,$D$9,$D$15,$D$11,$D$16),0) -> 1623 | L43: 19681.23573 | M43: 4.147912225 | N43: 16.90419018
H44: =H40+(H50-H40)*0.4 -> 13197.8 | I44: =I40+(I50-I40)*0.4 -> 1.94739643 | J44: =J40+(J50-J40)*0.4 -> 5.3064 | K44: =IF(H44<>0,RPM_AMCA208(H44,I44,J44,$D$10,$D$9,$D$15,$D$11,$D$16),0) -> 1623 | L44: 19472.754 | M44: 4.239416043 | N44: 17.04423401
H45: =H40+(H50-H40)*0.5 -> 13056.5 | I45: =I40+(I50-I40)*0.5 -> 1.989429155 | J45: =J40+(J50-J40)*0.5 -> 5.35 | K45: =IF(H45<>0,RPM_AMCA208(H45,I45,J45,$D$10,$D$9,$D$15,$D$11,$D$16),0) -> 1623 | L45: 19264.27227 | M45: 4.33091986 | N45: 17.18427785
H46: =H40+(H50-H40)*0.6 -> 12915.2 | I46: =I40+(I50-I40)*0.6 -> 2.031461879 | J46: =J40+(J50-J40)*0.6 -> 5.3936 | K46: =IF(H46<>0,RPM_AMCA208(H46,I46,J46,$D$10,$D$9,$D$15,$D$11,$D$16),0) -> 1623 | L46: 19055.79055 | M46: 4.422423677 | N46: 17.32432168
H47: =H40+(H50-H40)*0.7 -> 12773.9 | I47: =I40+(I50-I40)*0.7 -> 2.073494604 | J47: =J40+(J50-J40)*0.7 -> 5.4372 | K47: =IF(H47<>0,RPM_AMCA208(H47,I47,J47,$D$10,$D$9,$D$15,$D$11,$D$16),0) -> 1623 | L47: 18847.30882 | M47: 4.513927494 | N47: 17.46436552
H48: =H40+(H50-H40)*0.8 -> 12632.6 | I48: =I40+(I50-I40)*0.8 -> 2.115527329 | J48: =J40+(J50-J40)*0.8 -> 5.4808 | K48: =IF(H48<>0,RPM_AMCA208(H48,I48,J48,$D$10,$D$9,$D$15,$D$11,$D$16),0) -> 1623 | L48: 18638.82709 | M48: 4.605431311 | N48: 17.60440935
H49: =H40+(H50-H40)*0.9 -> 12491.3 | I49: =I40+(I50-I40)*0.9 -> 2.157560053 | J49: =J40+(J50-J40)*0.9 -> 5.5244 | K49: =IF(H49<>0,RPM_AMCA208(H49,I49,J49,$D$10,$D$9,$D$15,$D$11,$D$16),0) -> 1623 | L49: 18430.34536 | M49: 4.696935129 | N49: 17.74445318
H50: =A23 -> 12350 | I50: =IF($D$14="Total",D23,B23) -> 2.199592778 | J50: =C23 -> 5.568 | K50: =IF(H50<>0,RPM_AMCA208(H50,I50,J50,$D$10,$D$9,$D$15,$D$11,$D$16),0) -> 1623 | L50: 18221.86364 | M50: 4.788438946 | N50: 17.88449702
H51: =H50+(H60-H50)*0.1 -> 12218.3 | I51: =I50+(I60-I50)*0.1 -> 2.231432009 | J51: =J50+(J60-J50)*0.1 -> 5.6007 | K51: =IF(H51<>0,RPM_AMCA208(H51,I51,J51,$D$10,$D$9,$D$15,$D$11,$D$16),0) -> 1623 | L51: 18027.54627 | M51: 4.857751872 | N51: 17.98952989
H52: =H50+(H60-H50)*0.2 -> 12086.6 | I52: =I50+(I60-I50)*0.2 -> 2.263271239 | J52: =J50+(J60-J50)*0.2 -> 5.6334 | K52: =IF(H52<>0,RPM_AMCA208(H52,I52,J52,$D$10,$D$9,$D$15,$D$11,$D$16),0) -> 1623 | L52: 17833.22891 | M52: 4.927064798 | N52: 18.09456277 | O52: =IF(ISNUMBER(A52),A52*($P$18/$D$10)^1,"") ->  | P52: =IF(ISNUMBER(A52),G52*($P$18/$D$10)^2,"") ->  | R52: =IF(ISNUMBER(A52),A52*($S$18/$D$10)^1,"") ->  | S52: =IF(ISNUMBER(A52),G52*($S$18/$D$10)^2,"") -> 
H53: =H50+(H60-H50)*0.3 -> 11954.9 | I53: =I50+(I60-I50)*0.3 -> 2.29511047 | J53: =J50+(J60-J50)*0.3 -> 5.6661 | K53: =IF(H53<>0,RPM_AMCA208(H53,I53,J53,$D$10,$D$9,$D$15,$D$11,$D$16),0) -> 1623 | L53: 17638.91155 | M53: 4.996377725 | N53: 18.19959565
H54: =H50+(H60-H50)*0.4 -> 11823.2 | I54: =I50+(I60-I50)*0.4 -> 2.326949701 | J54: =J50+(J60-J50)*0.4 -> 5.6988 | K54: =IF(H54<>0,RPM_AMCA208(H54,I54,J54,$D$10,$D$9,$D$15,$D$11,$D$16),0) -> 1623 | L54: 17444.59418 | M54: 5.065690651 | N54: 18.30462852
H55: =H50+(H60-H50)*0.5 -> 11691.5 | I55: =I50+(I60-I50)*0.5 -> 2.358788931 | J55: =J50+(J60-J50)*0.5 -> 5.7315 | K55: =IF(H55<>0,RPM_AMCA208(H55,I55,J55,$D$10,$D$9,$D$15,$D$11,$D$16),0) -> 1623 | L55: 17250.27682 | M55: 5.135003577 | N55: 18.4096614
H56: =H50+(H60-H50)*0.6 -> 11559.8 | I56: =I50+(I60-I50)*0.6 -> 2.390628162 | J56: =J50+(J60-J50)*0.6 -> 5.7642 | K56: =IF(H56<>0,RPM_AMCA208(H56,I56,J56,$D$10,$D$9,$D$15,$D$11,$D$16),0) -> 1623 | L56: 17055.95945 | M56: 5.204316504 | N56: 18.51469427
H57: =H50+(H60-H50)*0.7 -> 11428.1 | I57: =I50+(I60-I50)*0.7 -> 2.422467393 | J57: =J50+(J60-J50)*0.7 -> 5.7969 | K57: =IF(H57<>0,RPM_AMCA208(H57,I57,J57,$D$10,$D$9,$D$15,$D$11,$D$16),0) -> 1623 | L57: 16861.64209 | M57: 5.27362943 | N57: 18.61972715
H58: =H50+(H60-H50)*0.8 -> 11296.4 | I58: =I50+(I60-I50)*0.8 -> 2.454306623 | J58: =J50+(J60-J50)*0.8 -> 5.8296 | K58: =IF(H58<>0,RPM_AMCA208(H58,I58,J58,$D$10,$D$9,$D$15,$D$11,$D$16),0) -> 1623 | L58: 16667.32473 | M58: 5.342942356 | N58: 18.72476002
H59: =H50+(H60-H50)*0.9 -> 11164.7 | I59: =I50+(I60-I50)*0.9 -> 2.486145854 | J59: =J50+(J60-J50)*0.9 -> 5.8623 | K59: =IF(H59<>0,RPM_AMCA208(H59,I59,J59,$D$10,$D$9,$D$15,$D$11,$D$16),0) -> 1623 | L59: 16473.00736 | M59: 5.412255283 | N59: 18.8297929
H60: =A24 -> 11033 | I60: =IF($D$14="Total",D24,B24) -> 2.517985085 | J60: =C24 -> 5.895 | K60: =IF(H60<>0,RPM_AMCA208(H60,I60,J60,$D$10,$D$9,$D$15,$D$11,$D$16),0) -> 1623 | L60: 16278.69 | M60: 5.481568209 | N60: 18.93482578
H61: =H60+(H70-H60)*0.1 -> 10862.8 | I61: =I60+(I70-I60)*0.1 -> 2.545640259 | J61: =J60+(J70-J60)*0.1 -> 5.893 | K61: =IF(H61<>0,RPM_AMCA208(H61,I61,J61,$D$10,$D$9,$D$15,$D$11,$D$16),0) -> 1623 | L61: 16027.56764 | M61: 5.541772587 | N61: 18.92840175
H62: =H60+(H70-H60)*0.2 -> 10692.6 | I62: =I60+(I70-I60)*0.2 -> 2.573295433 | J62: =J60+(J70-J60)*0.2 -> 5.891 | K62: =IF(H62<>0,RPM_AMCA208(H62,I62,J62,$D$10,$D$9,$D$15,$D$11,$D$16),0) -> 1623 | L62: 15776.44527 | M62: 5.601976964 | N62: 18.92197772
H63: =H60+(H70-H60)*0.3 -> 10522.4 | I63: =I60+(I70-I60)*0.3 -> 2.600950608 | J63: =J60+(J70-J60)*0.3 -> 5.889 | K63: =IF(H63<>0,RPM_AMCA208(H63,I63,J63,$D$10,$D$9,$D$15,$D$11,$D$16),0) -> 1623 | L63: 15525.32291 | M63: 5.662181342 | N63: 18.91555369
H64: =H60+(H70-H60)*0.4 -> 10352.2 | I64: =I60+(I70-I60)*0.4 -> 2.628605782 | J64: =J60+(J70-J60)*0.4 -> 5.887 | K64: =IF(H64<>0,RPM_AMCA208(H64,I64,J64,$D$10,$D$9,$D$15,$D$11,$D$16),0) -> 1623 | L64: 15274.20055 | M64: 5.722385719 | N64: 18.90912966
H65: =H60+(H70-H60)*0.5 -> 10182 | I65: =I60+(I70-I60)*0.5 -> 2.656260957 | J65: =J60+(J70-J60)*0.5 -> 5.885 | K65: =IF(H65<>0,RPM_AMCA208(H65,I65,J65,$D$10,$D$9,$D$15,$D$11,$D$16),0) -> 1623 | L65: 15023.07818 | M65: 5.782590097 | N65: 18.90270563
H66: =H60+(H70-H60)*0.6 -> 10011.8 | I66: =I60+(I70-I60)*0.6 -> 2.683916131 | J66: =J60+(J70-J60)*0.6 -> 5.883 | K66: =IF(H66<>0,RPM_AMCA208(H66,I66,J66,$D$10,$D$9,$D$15,$D$11,$D$16),0) -> 1623 | L66: 14771.95582 | M66: 5.842794474 | N66: 18.8962816
H67: =H60+(H70-H60)*0.7 -> 9841.6 | I67: =I60+(I70-I60)*0.7 -> 2.711571305 | J67: =J60+(J70-J60)*0.7 -> 5.881 | K67: =IF(H67<>0,RPM_AMCA208(H67,I67,J67,$D$10,$D$9,$D$15,$D$11,$D$16),0) -> 1623 | L67: 14520.83345 | M67: 5.902998852 | N67: 18.88985757
H68: =H60+(H70-H60)*0.8 -> 9671.4 | I68: =I60+(I70-I60)*0.8 -> 2.73922648 | J68: =J60+(J70-J60)*0.8 -> 5.879 | K68: =IF(H68<>0,RPM_AMCA208(H68,I68,J68,$D$10,$D$9,$D$15,$D$11,$D$16),0) -> 1623 | L68: 14269.71109 | M68: 5.96320323 | N68: 18.88343354
H69: =H60+(H70-H60)*0.9 -> 9501.2 | I69: =I60+(I70-I60)*0.9 -> 2.766881654 | J69: =J60+(J70-J60)*0.9 -> 5.877 | K69: =IF(H69<>0,RPM_AMCA208(H69,I69,J69,$D$10,$D$9,$D$15,$D$11,$D$16),0) -> 1623 | L69: 14018.58873 | M69: 6.023407607 | N69: 18.87700951
H70: =A25 -> 9331 | I70: =IF($D$14="Total",D25,B25) -> 2.794536829 | J70: =C25 -> 5.875 | K70: =IF(H70<>0,RPM_AMCA208(H70,I70,J70,$D$10,$D$9,$D$15,$D$11,$D$16),0) -> 1623 | L70: 13767.46636 | M70: 6.083611985 | N70: 18.87058549
H71: =H70+(H80-H70)*0.1 -> 9165.2 | I71: =I70+(I80-I70)*0.1 -> 2.799234751 | J71: =J70+(J80-J70)*0.1 -> 5.8492 | K71: =IF(H71<>0,RPM_AMCA208(H71,I71,J71,$D$10,$D$9,$D$15,$D$11,$D$16),0) -> 1623 | L71: 13522.836 | M71: 6.093839202 | N71: 18.78771551
H72: =H70+(H80-H70)*0.2 -> 8999.4 | I72: =I70+(I80-I70)*0.2 -> 2.803932673 | J72: =J70+(J80-J70)*0.2 -> 5.8234 | K72: =IF(H72<>0,RPM_AMCA208(H72,I72,J72,$D$10,$D$9,$D$15,$D$11,$D$16),0) -> 1623 | L72: 13278.20564 | M72: 6.104066419 | N72: 18.70484553
H73: =H70+(H80-H70)*0.3 -> 8833.6 | I73: =I70+(I80-I70)*0.3 -> 2.808630595 | J73: =J70+(J80-J70)*0.3 -> 5.7976 | K73: =IF(H73<>0,RPM_AMCA208(H73,I73,J73,$D$10,$D$9,$D$15,$D$11,$D$16),0) -> 1623 | L73: 13033.57527 | M73: 6.114293636 | N73: 18.62197556
H74: =H70+(H80-H70)*0.4 -> 8667.8 | I74: =I70+(I80-I70)*0.4 -> 2.813328517 | J74: =J70+(J80-J70)*0.4 -> 5.7718 | K74: =IF(H74<>0,RPM_AMCA208(H74,I74,J74,$D$10,$D$9,$D$15,$D$11,$D$16),0) -> 1572 | L74: 12387.07418 | M74: 5.745663154 | N74: 16.84576909
H75: =H70+(H80-H70)*0.5 -> 8502 | I75: =I70+(I80-I70)*0.5 -> 2.818026439 | J75: =J70+(J80-J70)*0.5 -> 5.746 | K75: =IF(H75<>0,RPM_AMCA208(H75,I75,J75,$D$10,$D$9,$D$15,$D$11,$D$16),0) -> 1435 | L75: 11091.24545 | M75: 4.795826854 | N75: 12.75684473
H76: =H70+(H80-H70)*0.6 -> 8336.2 | I76: =I70+(I80-I70)*0.6 -> 2.822724361 | J76: =J70+(J80-J70)*0.6 -> 5.7202 | K76: =IF(H76<>0,RPM_AMCA208(H76,I76,J76,$D$10,$D$9,$D$15,$D$11,$D$16),0) -> 1330 | L76: 10079.22364 | M76: 4.126543076 | N76: 10.11085963
H77: =H70+(H80-H70)*0.7 -> 8170.4 | I77: =I70+(I80-I70)*0.7 -> 2.827422283 | J77: =J70+(J80-J70)*0.7 -> 5.6944 | K77: =IF(H77<>0,RPM_AMCA208(H77,I77,J77,$D$10,$D$9,$D$15,$D$11,$D$16),0) -> 1243 | L77: 9232.552 | M77: 3.610335513 | N77: 8.216432677
H78: =H70+(H80-H70)*0.8 -> 8004.6 | I78: =I70+(I80-I70)*0.8 -> 2.832120205 | J78: =J70+(J80-J70)*0.8 -> 5.6686 | K78: =IF(H78<>0,RPM_AMCA208(H78,I78,J78,$D$10,$D$9,$D$15,$D$11,$D$16),0) -> 1169 | L78: 8506.706727 | M78: 3.198566131 | N78: 6.803639447
H79: =H70+(H80-H70)*0.9 -> 7838.8 | I79: =I70+(I80-I70)*0.9 -> 2.836818127 | J79: =J70+(J80-J70)*0.9 -> 5.6428 | K79: =IF(H79<>0,RPM_AMCA208(H79,I79,J79,$D$10,$D$9,$D$15,$D$11,$D$16),0) -> 1104 | L79: 7867.304727 | M79: 2.857487043 | N79: 5.704581936
H80: =A26 -> 7673 | I80: =IF($D$14="Total",D26,B26) -> 2.841516049 | J80: =C26 -> 5.617 | K80: =IF(H80<>0,RPM_AMCA208(H80,I80,J80,$D$10,$D$9,$D$15,$D$11,$D$16),0) -> 1047 | L80: 7303.300909 | M80: 2.574293774 | N80: 4.843579288
H81: =H80+(H90-H80)*0.1 -> 7500.8 | I81: =I80+(I90-I80)*0.1 -> 2.817684297 | J81: =J80+(J90-J80)*0.1 -> 5.5416 | K81: =IF(H81<>0,RPM_AMCA208(H81,I81,J81,$D$10,$D$9,$D$15,$D$11,$D$16),0) -> 993 | L81: 6771.176727 | M81: 2.296177507 | N81: 4.076663497
H82: =H80+(H90-H80)*0.2 -> 7328.6 | I82: =I80+(I90-I80)*0.2 -> 2.793852544 | J82: =J80+(J90-J80)*0.2 -> 5.4662 | K82: =IF(H82<>0,RPM_AMCA208(H82,I82,J82,$D$10,$D$9,$D$15,$D$11,$D$16),0) -> 945 | L82: 6295.933636 | M82: 2.061967081 | N82: 3.465795136
H83: =H80+(H90-H80)*0.3 -> 7156.4 | I83: =I80+(I90-I80)*0.3 -> 2.770020792 | J83: =J80+(J90-J80)*0.3 -> 5.3908 | K83: =IF(H83<>0,RPM_AMCA208(H83,I83,J83,$D$10,$D$9,$D$15,$D$11,$D$16),0) -> 902 | L83: 5868.248 | M83: 1.862561981 | N83: 2.972314614
H84: =H80+(H90-H80)*0.4 -> 6984.2 | I84: =I80+(I90-I80)*0.4 -> 2.74618904 | J84: =J80+(J90-J80)*0.4 -> 5.3154 | K84: =IF(H84<>0,RPM_AMCA208(H84,I84,J84,$D$10,$D$9,$D$15,$D$11,$D$16),0) -> 863 | L84: 5479.422364 | M84: 1.690311128 | N84: 2.566789675 | O84: =IF(ISNUMBER(A84),A84*($P$18/$D$10)^1,"") ->  | P84: =IF(ISNUMBER(A84),G84*($P$18/$D$10)^2,"") ->  | R84: =IF(ISNUMBER(A84),A84*($S$18/$D$10)^1,"") ->  | S84: =IF(ISNUMBER(A84),G84*($S$18/$D$10)^2,"") -> 
H85: =H80+(H90-H80)*0.5 -> 6812 | I85: =I80+(I90-I80)*0.5 -> 2.722357288 | J85: =J80+(J90-J80)*0.5 -> 5.24 | K85: =IF(H85<>0,RPM_AMCA208(H85,I85,J85,$D$10,$D$9,$D$15,$D$11,$D$16),0) -> 826 | L85: =IF(ISNUMBER(H85),IF(H85=0,0,H85*(K85/$D$10)^1),"") -> 5115.192727 | M85: =IF(ISNUMBER(H85),IF(H85=0,0,I85*(K85/$D$10)^2),"") -> 1.53504053 | N85: =IF(ISNUMBER(H85),IF(H85=0,0,J85*(K85/$D$10)^3),"") -> 2.218673384
H86: =H80+(H90-H80)*0.6 -> 6639.8 | I86: =I80+(I90-I80)*0.6 -> 2.698525536 | J86: =J80+(J90-J80)*0.6 -> 5.1646 | K86: =IF(H86<>0,RPM_AMCA208(H86,I86,J86,$D$10,$D$9,$D$15,$D$11,$D$16),0) -> 793 | L86: 4786.692182 | M86: 1.402450483 | N86: 1.93498765
H87: =H80+(H90-H80)*0.7 -> 6467.6 | I87: =I80+(I90-I80)*0.7 -> 2.674693784 | J87: =J80+(J90-J80)*0.7 -> 5.0892 | K87: =IF(H87<>0,RPM_AMCA208(H87,I87,J87,$D$10,$D$9,$D$15,$D$11,$D$16),0) -> 761 | L87: 4474.403273 | M87: 1.280141602 | N87: 1.685099048
H88: =H80+(H90-H80)*0.8 -> 6295.4 | I88: =I80+(I90-I80)*0.8 -> 2.650862032 | J88: =J80+(J90-J80)*0.8 -> 5.0138 | K88: =IF(H88<>0,RPM_AMCA208(H88,I88,J88,$D$10,$D$9,$D$15,$D$11,$D$16),0) -> 731 | L88: 4183.579455 | M88: 1.170675443 | N88: 1.471434998
H89: =H80+(H90-H80)*0.9 -> 6123.2 | I89: =I80+(I90-I80)*0.9 -> 2.62703028 | J89: =J80+(J90-J80)*0.9 -> 4.9384 | K89: =IF(H89<>0,RPM_AMCA208(H89,I89,J89,$D$10,$D$9,$D$15,$D$11,$D$16),0) -> 702 | L89: 3907.714909 | M89: 1.069926471 | N89: 1.283569961
H90: =A27 -> 5951 | I90: =IF($D$14="Total",D27,B27) -> 2.603198528 | J90: =C27 -> 4.863 | K90: =IF(H90<>0,RPM_AMCA208(H90,I90,J90,$D$10,$D$9,$D$15,$D$11,$D$16),0) -> 673 | L90: 3640.93 | M90: 0.9744331454 | N90: 1.113708173
H91: =H90+(H100-H90)*0.1 -> 5822.8 | I91: =I90+(I100-I90)*0.1 -> 2.590345343 | J91: =J90+(J100-J90)*0.1 -> 4.8035 | K91: =IF(H91<>0,RPM_AMCA208(H91,I91,J91,$D$10,$D$9,$D$15,$D$11,$D$16),0) -> 655 | L91: 3467.212727 | M91: 0.9184486865 | N91: 1.014153373
H92: =H90+(H100-H90)*0.2 -> 5694.6 | I92: =I90+(I100-I90)*0.2 -> 2.577492158 | J92: =J90+(J100-J90)*0.2 -> 4.744 | K92: =IF(H92<>0,RPM_AMCA208(H92,I92,J92,$D$10,$D$9,$D$15,$D$11,$D$16),0) -> 635 | L92: 3287.337273 | M92: 0.8589332854 | N92: 0.9126154162
H93: =H90+(H100-H90)*0.3 -> 5566.4 | I93: =I90+(I100-I90)*0.3 -> 2.564638973 | J93: =J90+(J100-J90)*0.3 -> 4.6845 | K93: =IF(H93<>0,RPM_AMCA208(H93,I93,J93,$D$10,$D$9,$D$15,$D$11,$D$16),0) -> 615 | L93: 3112.123636 | M93: 0.8016616327 | N93: 0.8186731275
H94: =H90+(H100-H90)*0.4 -> 5438.2 | I94: =I90+(I100-I90)*0.4 -> 2.551785788 | J94: =J90+(J100-J90)*0.4 -> 4.625 | K94: =IF(H94<>0,RPM_AMCA208(H94,I94,J94,$D$10,$D$9,$D$15,$D$11,$D$16),0) -> 590 | L94: 2916.852727 | M94: 0.7341129197 | N94: 0.7136573065
H95: =H90+(H100-H90)*0.5 -> 5310 | I95: =I90+(I100-I90)*0.5 -> 2.538932603 | J95: =J90+(J100-J90)*0.5 -> 4.5655 | K95: =IF(H95<>0,RPM_AMCA208(H95,I95,J95,$D$10,$D$9,$D$15,$D$11,$D$16),0) -> 204 | L95: 984.7636364 | M95: 0.08732249522 | N95: 0.02912063185
H96: =H90+(H100-H90)*0.6 -> 5181.8 | I96: =I90+(I100-I90)*0.6 -> 2.526079418 | J96: =J90+(J100-J90)*0.6 -> 4.506 | K96: =IF(H96<>0,RPM_AMCA208(H96,I96,J96,$D$10,$D$9,$D$15,$D$11,$D$16),0) -> 208 | L96: 979.8312727 | M96: 0.09032090905 | N96: 0.03046513709
H97: =H90+(H100-H90)*0.7 -> 5053.6 | I97: =I90+(I100-I90)*0.7 -> 2.513226233 | J97: =J90+(J100-J90)*0.7 -> 4.4465 | K97: =IF(H97<>0,RPM_AMCA208(H97,I97,J97,$D$10,$D$9,$D$15,$D$11,$D$16),0) -> 212 | L97: 973.9665455 | M97: 0.09335077672 | N97: 0.0318308198
H98: =H90+(H100-H90)*0.8 -> 4925.4 | I98: =I90+(I100-I90)*0.8 -> 2.500373049 | J98: =J90+(J100-J90)*0.8 -> 4.387 | K98: =IF(H98<>0,RPM_AMCA208(H98,I98,J98,$D$10,$D$9,$D$15,$D$11,$D$16),0) -> 216 | L98: 967.1694545 | M98: 0.09641107847 | N98: 0.03321626773
H99: =H90+(H100-H90)*0.9 -> 4797.2 | I99: =I90+(I100-I90)*0.9 -> 2.487519864 | J99: =J90+(J100-J90)*0.9 -> 4.3275 | K99: =IF(H99<>0,RPM_AMCA208(H99,I99,J99,$D$10,$D$9,$D$15,$D$11,$D$16),0) -> 220 | L99: 959.44 | M99: 0.09950079454 | N99: 0.03462
H100: =A28 -> 4669 | I100: =IF($D$14="Total",D28,B28) -> 2.474666679 | J100: =C28 -> 4.268 | K100: =IF(H100<>0,RPM_AMCA208(H100,I100,J100,$D$10,$D$9,$D$15,$D$11,$D$16),0) -> 224 | L100: 950.7781818 | M100: 0.1026189052 | N100: 0.03604046704

Sheet AMCA 207 Tables (hidden)
A1: Table A1. EISA 2007 Nominal Motor Effciency
A2: Motor Power (hp) | B2: ODP
B3: 2 | C3: 4 | D3: 6 | E3: 8
A4: 1 | B4: 0.77 | C4: 0.855 | D4: 0.825 | E4: 0.755
A5: 1.5 | B5: 0.84 | C5: 0.865 | D5: 0.865 | E5: 0.785
A6: 2 | B6: 0.855 | C6: 0.865 | D6: 0.875 | E6: 0.84
A7: 3 | B7: 0.855 | C7: 0.895 | D7: 0.885 | E7: 0.855
A8: 5 | B8: 0.865 | C8: 0.895 | D8: 0.895 | E8: 0.865
A9: 7.5 | B9: 0.885 | C9: 0.91 | D9: 0.902 | E9: 0.865
A10: 10 | B10: 0.895 | C10: 0.917 | D10: 0.917 | E10: 0.895
A11: 15 | B11: 0.902 | C11: 0.93 | D11: 0.917 | E11: 0.895
A12: 20 | B12: 0.91 | C12: 0.93 | D12: 0.924 | E12: 0.902
A13: 25 | B13: 0.917 | C13: 0.936 | D13: 0.93 | E13: 0.902
A14: 30 | B14: 0.917 | C14: 0.941 | D14: 0.936 | E14: 0.917
A15: 40 | B15: 0.924 | C15: 0.941 | D15: 0.941 | E15: 0.917
A16: 50 | B16: 0.93 | C16: 0.945 | D16: 0.941 | E16: 0.924
A17: 60 | B17: 0.936 | C17: 0.95 | D17: 0.945 | E17: 0.924
A18: 75 | B18: 0.936 | C18: 0.95 | D18: 0.945 | E18: 0.936
A19: 100 | B19: 0.936 | C19: 0.954 | D19: 0.95 | E19: 0.941
A20: 125 | B20: 0.941 | C20: 0.954 | D20: 0.95 | E20: 0.941
A21: 150 | B21: 0.941 | C21: 0.958 | D21: 0.954 | E21: 0.945
A22: 200 | B22: 0.95 | C22: 0.958 | D22: 0.954 | E22: 0.945
A23: 250 | B23: 0.95 | C23: 0.958 | D23: 0.958 | E23: 0.95
A24: 300 | B24: 0.954 | C24: 0.958 | D24: 0.958
A25: 350 | B25: 0.954 | C25: 0.958 | D25: 0.955
A26: 400 | B26: 0.958 | C26: 0.958
A27: 450 | B27: 0.962 | C27: 0.962
A28: 500 | B28: 0.962 | C28: 0.962
A30: Table A1. EISA 2007 Nominal Motor Effciency
A31: Motor Power (hp) | B31: TEFC
B32: 2 | C32: 4 | D32: 6 | E32: 8
A33: 1 | B33: 0.77 | C33: 0.855 | D33: 0.825 | E33: 0.72
A34: 1.5 | B34: 0.84 | C34: 0.865 | D34: 0.875 | E34: 0.755
A35: 2 | B35: 0.855 | C35: 0.865 | D35: 0.885 | E35: 0.815
A36: 3 | B36: 0.865 | C36: 0.895 | D36: 0.895 | E36: 0.825
A37: 5 | B37: 0.885 | C37: 0.895 | D37: 0.895 | E37: 0.84
A38: 7.5 | B38: 0.895 | C38: 0.917 | D38: 0.91 | E38: 0.84
A39: 10 | B39: 0.902 | C39: 0.917 | D39: 0.91 | E39: 0.875
A40: 15 | B40: 0.91 | C40: 0.924 | D40: 0.917 | E40: 0.875
A41: 20 | B41: 0.91 | C41: 0.93 | D41: 0.917 | E41: 0.885
A42: 25 | B42: 0.917 | C42: 0.936 | D42: 0.93 | E42: 0.885
A43: 30 | B43: 0.917 | C43: 0.936 | D43: 0.93 | E43: 0.902
A44: 40 | B44: 0.924 | C44: 0.941 | D44: 0.941 | E44: 0.902
A45: 50 | B45: 0.93 | C45: 0.945 | D45: 0.941 | E45: 0.91
A46: 60 | B46: 0.936 | C46: 0.95 | D46: 0.945 | E46: 0.91
A47: 75 | B47: 0.936 | C47: 0.954 | D47: 0.945 | E47: 0.924
A48: 100 | B48: 0.941 | C48: 0.954 | D48: 0.95 | E48: 0.924
A49: 125 | B49: 0.95 | C49: 0.954 | D49: 0.95 | E49: 0.93
A50: 150 | B50: 0.95 | C50: 0.958 | D50: 0.958 | E50: 0.93
A51: 200 | B51: 0.954 | C51: 0.962 | D51: 0.958 | E51: 0.936
A52: 250 | B52: 0.958 | C52: 0.962 | D52: 0.958 | E52: 0.941
A53: 300 | B53: 0.958 | C53: 0.962
A54: 350 | B54: 0.958 | C54: 0.962
A55: 400 | B55: 0.958 | C55: 0.962
A56: 450 | B56: 0.958 | C56: 0.962
A57: 500 | B57: 0.958 | C57: 0.962
A59: Table A2. IEC60034-30 Nominal Motor Efficiency
A60: Motor Power (kW) | B60: IE1 | E60: IE2 | H60: IE3
B61: 2 Pole | C61: 4 Pole | D61: 6 Pole | E61: 2 Pole | F61: 4 Pole | G61: 6 Pole | H61: 2 Pole | I61: 4 Pole | J61: 6 Pole
B62: 50 Hz | C62: 50 Hz | D62: 50 Hz | E62: 50 Hz | F62: 50 Hz | G62: 50 Hz | H62: 50 Hz | I62: 50 Hz | J62: 50 Hz
A63: 1 | B63: 72.1 | C63: 72.1 | D63: 70 | E63: 77.4 | F63: 79.6 | G63: 75.9 | H63: 80.7 | I63: 82.5 | J63: 78.9
A64: 1.1 | B64: 75 | C64: 75 | D64: 72.9 | E64: 79.6 | F64: 81.4 | G64: 78.1 | H64: 82.7 | I64: 84.1 | J64: 81
A65: 1.5 | B65: 77.2 | C65: 77.2 | D65: 75.2 | E65: 81.3 | F65: 82.8 | G65: 79.8 | H65: 84.2 | I65: 85.3 | J65: 82.5
A66: 2.2 | B66: 79.7 | C66: 79.7 | D66: 77.7 | E66: 83.2 | F66: 84.3 | G66: 81.8 | H66: 85.9 | I66: 86.7 | J66: 84.3
A67: 3 | B67: 81.5 | C67: 81.5 | D67: 79.7 | E67: 84.6 | F67: 85.5 | G67: 83.3 | H67: 87.1 | I67: 87.7 | J67: 85.6
A68: 4 | B68: 83.1 | C68: 83.1 | D68: 81.4 | E68: 85.8 | F68: 86.6 | G68: 84.6 | H68: 88.1 | I68: 88.6 | J68: 86.8
A69: 5.5 | B69: 84.7 | C69: 84.7 | D69: 83.1 | E69: 87 | F69: 87.7 | G69: 86 | H69: 89.2 | I69: 89.6 | J69: 88
A70: 7.5 | B70: 86 | C70: 86 | D70: 84.7 | E70: 88.1 | F70: 88.7 | G70: 87.2 | H70: 90.1 | I70: 90.4 | J70: 89.1
A71: 11 | B71: 87.6 | C71: 87.6 | D71: 86.4 | E71: 89.4 | F71: 89.8 | G71: 88.7 | H71: 91.2 | I71: 91.4 | J71: 90.3
A72: 15 | B72: 88.7 | C72: 88.7 | D72: 87.7 | E72: 90.3 | F72: 90.6 | G72: 89.7 | H72: 91.9 | I72: 92.1 | J72: 91.2
A73: 18.5 | B73: 89.3 | C73: 89.3 | D73: 88.6 | E73: 90.9 | F73: 91.2 | G73: 90.4 | H73: 92.4 | I73: 92.6 | J73: 91.7
A74: 22 | B74: 89.9 | C74: 89.9 | D74: 89.2 | E74: 91.3 | F74: 91.6 | G74: 90.9 | H74: 92.7 | I74: 93 | J74: 92.2
A75: 30 | B75: 90.7 | C75: 90.7 | D75: 90.2 | E75: 92 | F75: 92.3 | G75: 91.7 | H75: 93.3 | I75: 93.6 | J75: 92.9
A76: 37 | B76: 91.2 | C76: 91.2 | D76: 90.8 | E76: 92.5 | F76: 92.7 | G76: 92.2 | H76: 93.7 | I76: 93.9 | J76: 93.3
A77: 45 | B77: 91.7 | C77: 91.7 | D77: 91.4 | E77: 92.9 | F77: 93.1 | G77: 92.7 | H77: 94 | I77: 94.2 | J77: 93.7
A78: 55 | B78: 92.1 | C78: 92.1 | D78: 91.9 | E78: 93.2 | F78: 93.5 | G78: 93.1 | H78: 94.3 | I78: 94.6 | J78: 94.1
A79: 75 | B79: 92.7 | C79: 92.7 | D79: 92.6 | E79: 93.8 | F79: 94 | G79: 93.7 | H79: 94.7 | I79: 95 | J79: 94.6
A80: 90 | B80: 93 | C80: 93 | D80: 92.9 | E80: 94.1 | F80: 94.2 | G80: 94 | H80: 95 | I80: 95.2 | J80: 94.9
A81: 110 | B81: 93.3 | C81: 93.3 | D81: 93.3 | E81: 94.3 | F81: 94.5 | G81: 94.3 | H81: 95.2 | I81: 95.4 | J81: 95.1
A82: 132 | B82: 93.5 | C82: 93.5 | D82: 93.5 | E82: 94.6 | F82: 94.7 | G82: 94.6 | H82: 95.4 | I82: 95.6 | J82: 95.4
A83: 160 | B83: 93.8 | C83: 93.8 | D83: 93.8 | E83: 94.8 | F83: 94.9 | G83: 94.8 | H83: 95.6 | I83: 95.8 | J83: 95.6
A84: 200 | B84: 94 | C84: 94 | D84: 94 | E84: 95 | F84: 95.1 | G84: 95 | H84: 95.8 | I84: 96 | J84: 95.8
A85: 220 | B85: 94 | C85: 94 | D85: 94 | E85: 95 | F85: 95.1 | G85: 95 | H85: 95.8 | I85: 96 | J85: 95.8
A86: 250 | B86: 94 | C86: 94 | D86: 94 | E86: 95 | F86: 95.1 | G86: 95 | H86: 95.8 | I86: 96 | J86: 95.8
A87: 300 | B87: 94 | C87: 94 | D87: 94 | E87: 95 | F87: 95.1 | G87: 95 | H87: 95.8 | I87: 96 | J87: 95.8
A88: 330 | B88: 94 | C88: 94 | D88: 94 | E88: 95 | F88: 95.1 | G88: 95 | H88: 95.8 | I88: 96 | J88: 95.8
A89: 375 | B89: 94 | C89: 94 | D89: 94 | E89: 95 | F89: 95.1 | G89: 95 | H89: 95.8 | I89: 96 | J89: 95.8
A91: Table A3. GB 18613-2012 Nominal Motor Efficiency
A92: Motor Power (kW) | B92: Grade 1 | E92: Grade 2 | H92: Grade 3
B93: 2 Pole | C93: 4 Pole | D93: 6 Pole | E93: 2 Pole | F93: 4 Pole | G93: 6 Pole | H93: 2 Pole | I93: 4 Pole | J93: 6 Pole
A94: 1 | B94: 84.9 | C94: 85.6 | D94: 83.1 | E94: 80.7 | F94: 82.5 | G94: 78.9 | H94: 77.4 | I94: 79.6 | J94: 75.9
A95: 1.1 | B95: 86.7 | C95: 87.4 | D95: 84.1 | E95: 82.7 | F95: 84.1 | G95: 81 | H95: 79.6 | I95: 81.4 | J95: 78.1
A96: 1.5 | B96: 87.5 | C96: 88.1 | D96: 86.2 | E96: 84.2 | F96: 85.3 | G96: 82.5 | H96: 81.3 | I96: 82.8 | J96: 79.8
A97: 2.2 | B97: 89.1 | C97: 89.7 | D97: 87.1 | E97: 85.9 | F97: 86.7 | G97: 84.3 | H97: 83.2 | I97: 84.3 | J97: 81.8
A98: 3 | B98: 89.7 | C98: 90.3 | D98: 88.7 | E98: 87.1 | F98: 87.7 | G98: 85.6 | H98: 84.6 | I98: 85.5 | J98: 83.3
A99: 4 | B99: 90.3 | C99: 90.9 | D99: 89.7 | E99: 88.1 | F99: 88.6 | G99: 86.8 | H99: 85.8 | I99: 86.6 | J99: 84.6
A100: 5.5 | B100: 91.5 | C100: 92.1 | D100: 89.5 | E100: 89.2 | F100: 89.6 | G100: 88 | H100: 87 | I100: 87.7 | J100: 86
A101: 7.5 | B101: 92.1 | C101: 92.6 | D101: 90.2 | E101: 90.1 | F101: 90.4 | G101: 89.1 | H101: 88.1 | I101: 88.7 | J101: 87.2
A102: 11 | B102: 93 | C102: 93.6 | D102: 91.5 | E102: 91.2 | F102: 91.4 | G102: 90.3 | H102: 89.4 | I102: 89.8 | J102: 88.7
A103: 15 | B103: 93.4 | C103: 94 | D103: 92.5 | E103: 91.9 | F103: 92.1 | G103: 91.2 | H103: 90.3 | I103: 90.6 | J103: 89.7
A104: 18.5 | B104: 93.8 | C104: 94.3 | D104: 93.1 | E104: 92.4 | F104: 92.6 | G104: 91.7 | H104: 90.9 | I104: 91.2 | J104: 90.4
A105: 22 | B105: 94.4 | C105: 94.7 | D105: 93.9 | E105: 92.7 | F105: 93 | G105: 92.2 | H105: 91.3 | I105: 91.6 | J105: 90.9
A106: 30 | B106: 94.5 | C106: 95 | D106: 94.3 | E106: 93.3 | F106: 93.6 | G106: 92.9 | H106: 92 | I106: 92.3 | J106: 91.7
A107: 37 | B107: 94.8 | C107: 95.3 | D107: 94.6 | E107: 93.7 | F107: 93.9 | G107: 93.3 | H107: 92.5 | I107: 92.7 | J107: 92.2
A108: 45 | B108: 95.1 | C108: 95.6 | D108: 94.9 | E108: 94 | F108: 94.2 | G108: 93.7 | H108: 92.9 | I108: 93.1 | J108: 92.7
A109: 55 | B109: 95.4 | C109: 95.8 | D109: 95.2 | E109: 94.3 | F109: 94.6 | G109: 94.1 | H109: 93.2 | I109: 93.5 | J109: 93.1
A110: 75 | B110: 95.6 | C110: 96 | D110: 95.4 | E110: 94.7 | F110: 95 | G110: 94.6 | H110: 93.8 | I110: 94 | J110: 93.7
A111: 90 | B111: 95.8 | C111: 96.2 | D111: 95.6 | E111: 95 | F111: 95.2 | G111: 94.9 | H111: 94.1 | I111: 94.2 | J111: 94
A112: 110 | B112: 96 | C112: 96.4 | D112: 95.6 | E112: 95.2 | F112: 95.4 | G112: 95.1 | H112: 94.6 | I112: 94.5 | J112: 94.3
A113: 132 | B113: 95 | C113: 96.5 | D113: 95.8 | E113: 95.4 | F113: 95.6 | G113: 95.4 | H113: 94.6 | I113: 94.7 | J113: 94.6
A114: 160 | B114: 96.2 | C114: 96.5 | D114: 96 | E114: 95.6 | F114: 95.8 | G114: 95.6 | H114: 94.8 | I114: 94.9 | J114: 94.8
A115: 200 | B115: 96.3 | C115: 96.6 | D115: 96.1 | E115: 95.8 | F115: 96 | G115: 95.8 | H115: 95 | I115: 95.1 | J115: 95
A116: 250 | B116: 96.4 | C116: 96.7 | D116: 96.1 | E116: 95.8 | F116: 96 | G116: 95.8 | H116: 95 | I116: 95.1 | J116: 95
A117: 315 | B117: 96.5 | C117: 96.8 | D117: 96.1 | E117: 95.8 | F117: 96 | G117: 95.8 | H117: 95 | I117: 95.1 | J117: 95
A118: 355 | B118: 96.6 | C118: 96.8 | D118: 96.1 | E118: 95.8 | F118: 96 | G118: 95.8 | H118: 95 | I118: 95.1 | J118: 95
A119: 375 | B119: 96.6 | C119: 96.8 | D119: 96.1 | E119: 95.8 | F119: 96 | G119: 95.8 | H119: 95 | I119: 95.1 | J119: 95
A121: Table B1. Polyphase Induction Motor Coefficients, VFD Driven (hp)
A122: HP | B122: 2 POLE | E122: 4 POLE | H122: 6 POLE | K122: 8 POLE
B123: a | C123: b | D123: c | E123: a | F123: b | G123: c | H123: a | I123: b | J123: c | K123: a | L123: b | M123: c
A124: 1 | B124: 1.029058709 | C124: 0.01701058158 | D124: =1-(B124/(C124+1)) -> -0.01184660968 | E124: 1.03744 | F124: 0.03337 | G124: =1-(E124/(F124+1)) -> -0.003938569922 | H124: 1.0905913 | I124: 0.06456925259 | J124: =1-(H124/(I124+1)) -> -0.02444373351 | K124: 1.0905913 | L124: 0.06456925259 | M124: =1-(K124/(L124+1)) -> -0.02444373351
A125: 1.5 | B125: 1.029977133 | C125: 0.01610317847 | D125: =1-(B125/(C125+1)) -> -0.01365408061 | E125: 1.03812 | F125: 0.03119670754 | G125: =1-(E125/(F125+1)) -> -0.006713842677 | H125: 1.084843844 | I125: 0.05902774502 | J125: =1-(H125/(I125+1)) -> -0.02437716959 | K125: 1.084843844 | L125: 0.05902774502 | M125: =1-(K125/(L125+1)) -> -0.02437716959
A126: 2 | B126: 1.030895557 | C126: 0.01519577537 | D126: -0.01546478264 | E126: 1.0388 | F126: 0.02902048985 | G126: -0.009503707892 | H126: 1.079096388 | I126: 0.05348623744 | J126: -0.02430990538 | K126: 1.079096388 | L126: 0.05348623744 | M126: -0.02430990538
A127: 3 | B127: 1.032732406 | C127: 0.01338096915 | D127: -0.01909591475 | E127: 1.04016 | F127: 0.02466805448 | G127: -0.01511898947 | H127: 1.067601477 | I127: 0.04240322229 | J127: -0.02417323148 | K127: 1.067601477 | L127: 0.04240322229 | M127: -0.02417323148
A128: 5 | B128: 1.036406103 | C128: 0.009751356732 | D128: -0.02639733595 | E128: 1.04288 | F128: 0.01596318373 | G128: -0.02649388945 | H128: 1.044611654 | I128: 0.02023719198 | J128: -0.02389097541 | K128: 1.044611654 | L128: 0.02023719198 | M128: -0.02389097541
A129: 7.5 | B129: 1.034892242 | C129: 0.008916167604 | D129: -0.02574651386 | E129: 1.04077 | F129: 0.01446346728 | G129: -0.0259314737 | H129: 1.04242939 | I129: 0.01798081369 | J129: -0.02401673575 | K129: 1.04242939 | L129: 0.01798081369 | M129: -0.02401673575
A130: 10 | B130: 1.033378381 | C130: 0.008080978477 | D130: -0.02509461336 | E130: 1.03866 | F130: 0.01296375083 | G130: -0.02536739261 | H130: 1.040247126 | I130: 0.0157244354 | J130: -0.02414305482 | K130: 1.040247126 | L130: 0.0157244354 | M130: -0.02414305482
A131: 15 | B131: 1.030350659 | C131: 0.006410600222 | D131: -0.02378756641 | E131: 1.03443 | F131: 0.00996431794 | G131: -0.0242243034 | H131: 1.035882599 | I131: 0.01121167881 | J131: -0.02439738415 | K131: 1.035882599 | L131: 0.01121167881 | M131: -0.02439738415
A132: 20 | B132: 1.027322938 | C132: 0.004740221967 | D132: -0.02247617354 | E132: 1.03021 | F132: 0.006964885047 | G132: -0.02308433521 | H132: 1.031518071 | I132: 0.006698922229 | J132: -0.02465399365 | K132: 1.031518071 | L132: 0.006698922229 | M132: -0.02465399365
A133: 25 | B133: 1.0265368 | C133: 0.004758012192 | D133: -0.0216756546 | E133: 1.02882 | F133: 0.006421183383 | G133: -0.02225590735 | H133: 1.029774386 | I133: 0.006223126419 | J133: -0.02340560335 | K133: 1.029774386 | L133: 0.006223126419 | M133: -0.02340560335
A134: 30 | B134: 1.025750662 | C134: 0.004775802417 | D134: -0.020875164 | E134: 1.02742 | F134: 0.005877481719 | G134: -0.02141664236 | H134: 1.028030701 | I134: 0.005747330609 | J134: -0.02215603188 | K134: 1.028030701 | L134: 0.005747330609 | M134: -0.02215603188
A135: 40 | B135: 1.024178387 | C135: 0.004811382867 | D135: -0.01927426785 | E135: 1.02464 | F135: 0.004790078391 | G135: -0.01975529221 | H135: 1.02454333 | I135: 0.00479573899 | J135: -0.01965333871 | K135: 1.02454333 | L135: 0.00479573899 | M135: -0.01965333871
A136: 50 | B136: 1.022606111 | C136: 0.004846963317 | D136: -0.01767348506 | E136: 1.02185 | F136: 0.003702675063 | G136: -0.01808037917 | H136: 1.021055959 | I136: 0.003844147371 | J136: -0.01714590071 | K136: 1.021055959 | L136: 0.003844147371 | M136: -0.01714590071
A137: 60 | B137: 1.022259272 | C137: 0.004488778563 | D137: -0.01769108246 | E137: 1.021 | F137: 0.003499895607 | G137: -0.01743906947 | H137: 1.020572713 | I137: 0.003986054991 | J137: -0.01652080566 | K137: 1.020572713 | L137: 0.003986054991 | M137: -0.01652080566
A138: 75 | B138: 1.021739014 | C138: 0.003951501432 | D138: -0.01771750211 | E138: 1.01972 | F138: 0.003195726423 | G138: -0.01647163474 | H138: 1.019847845 | I138: 0.004198916421 | J138: -0.01558349434 | K138: 1.019847845 | L138: 0.004198916421 | M138: -0.01558349434
A139: 100 | B139: 1.020871917 | C139: 0.003056039548 | D139: -0.01776159775 | E139: 1.01758 | F139: 0.002688777784 | G139: -0.0148512904 | H139: 1.01863973 | I139: 0.004553685471 | J139: -0.01402219153 | K139: 1.01863973 | L139: 0.004553685471 | M139: -0.01402219153
A140: 125 | B140: 1.019970936 | C140: 0.002992966176 | D140: -0.01692730697 | E140: 1.01725 | F140: 0.002857560252 | G140: -0.01435142967 | H140: 1.019555448 | I140: 0.004585554345 | J140: -0.01490156212 | K140: 1.019555448 | L140: 0.004585554345 | M140: -0.01490156212
A141: 150 | B141: 1.019069955 | C141: 0.002929892804 | D141: -0.01609291125 | E141: 1.01692 | F141: 0.003026342719 | G141: -0.01385173718 | H141: 1.020471167 | I141: 0.004617423219 | J141: -0.01578087692 | K141: 1.020471167 | L141: 0.004617423219 | M141: -0.01578087692
A142: 200 | B142: 1.017267992 | C142: 0.00280374606 | D142: -0.01442380492 | E142: 1.01626 | F142: 0.00336 | G142: -0.01285680115 | H142: 1.022302605 | I142: 0.004681160967 | J142: -0.01753933917 | K142: 1.022302605 | L142: 0.004681160967 | M142: -0.01753933917
A143: 250 | B143: 1.017267992 | C143: 0.00280374606 | D143: -0.01442380492 | E143: 1.01626 | F143: 0.00336 | G143: -0.01285680115 | H143: 1.022302605 | I143: 0.004681160967 | J143: -0.01753933917 | K143: 1.022302605 | L143: 0.004681160967 | M143: -0.01753933917
A144: 300 | B144: 1.017267992 | C144: 0.00280374606 | D144: -0.01442380492 | E144: 1.01626 | F144: 0.00336 | G144: -0.01285680115 | H144: 1.022302605 | I144: 0.004681160967 | J144: -0.01753933917 | K144: 1.022302605 | L144: 0.004681160967 | M144: -0.01753933917
A145: 350 | B145: 1.017267992 | C145: 0.00280374606 | D145: -0.01442380492 | E145: 1.01626 | F145: 0.00336 | G145: -0.01285680115 | H145: 1.022302605 | I145: 0.004681160967 | J145: -0.01753933917 | K145: 1.022302605 | L145: 0.004681160967 | M145: -0.01753933917
A146: 400 | B146: 1.017267992 | C146: 0.00280374606 | D146: -0.01442380492 | E146: 1.01626 | F146: 0.00336 | G146: -0.01285680115 | H146: 1.022302605 | I146: 0.004681160967 | J146: -0.01753933917 | K146: 1.022302605 | L146: 0.004681160967 | M146: -0.01753933917
A147: 450 | B147: 1.017267992 | C147: 0.00280374606 | D147: -0.01442380492 | E147: 1.01626 | F147: 0.00336 | G147: -0.01285680115 | H147: 1.022302605 | I147: 0.004681160967 | J147: -0.01753933917 | K147: 1.022302605 | L147: 0.004681160967 | M147: -0.01753933917
A148: 500 | B148: 1.017267992 | C148: 0.00280374606 | D148: -0.01442380492 | E148: 1.01626 | F148: 0.00336 | G148: -0.01285680115 | H148: 1.022302605 | I148: 0.004681160967 | J148: -0.01753933917 | K148: 1.022302605 | L148: 0.004681160967 | M148: -0.01753933917
A150: Table B2. Polyphase Induction Motor Coefficients, VFD Driven (kW)
A151: kW | B151: 2 POLE | E151: 4 POLE | H151: 6 POLE | K151: 8 POLE
B152: a | C152: b | D152: c | E152: a | F152: b | G152: c | H152: a | I152: b | J152: c | K152: a | L152: b | M152: c
A153: 1 | B153: 1.029684124 | C153: 0.01639267169 | D153: =1-(B153/(C153+1)) -> -0.01307708382 | E153: 1.037907038 | F153: 0.03189099683 | G153: =1-(E153/(F153+1)) -> -0.005830112717 | H153: 1.086677483 | I153: 0.06079567907 | J153: =1-(H153/(I153+1)) -> -0.02439848134 | K153: 1.086677483 | L153: 0.06079567907 | M153: =1-(K153/(L153+1)) -> -0.02439848134
A154: 1.1 | B154: 1.02993035 | C154: 0.01614940008 | D154: =1-(B154/(C154+1)) -> -0.01356193301 | E154: 1.038089217 | F154: 0.03130756045 | G154: =1-(E154/(F154+1)) -> -0.006575784822 | H154: 1.08513661 | I154: 0.0593100202 | J154: =1-(H154/(I154+1)) -> -0.02438057708 | K154: 1.08513661 | L154: 0.0593100202 | M154: =1-(K154/(L154+1)) -> -0.02438057708
A155: 1.5 | B155: 1.030915255 | C155: 0.01517631364 | D155: -0.01550365353 | E155: 1.038817935 | F155: 0.02897381494 | G155: -0.009566929282 | H155: 1.078973118 | I155: 0.05336738473 | J155: -0.02430845497 | K155: 1.078973118 | L155: 0.05336738473 | M155: -0.02430845497
A156: 2.2 | B156: 1.03263884 | C156: 0.01347341237 | D156: -0.01891063658 | E156: 1.04009319 | F156: 0.0248897603 | G156: -0.01483421024 | H156: 1.068187008 | I156: 0.04296777266 | J156: -0.02418026364 | K156: 1.068187008 | L156: 0.04296777266 | M156: -0.02418026364
A157: 3 | B157: 1.03460865 | C157: 0.01152723949 | D157: -0.02281837795 | E157: 1.041550626 | F157: 0.02022226928 | G157: -0.02090559779 | H157: 1.055860026 | I157: 0.03108250171 | J157: -0.02403059285 | K157: 1.055860026 | L157: 0.03108250171 | M157: -0.02403059285
A158: 3.7 | B158: 1.036332235 | C158: 0.009824338215 | D158: -0.02625000746 | E158: 1.042825882 | F158: 0.01613821464 | G158: -0.02626381577 | H158: 1.045073916 | I158: 0.02068288964 | J158: -0.02389677158 | K158: 1.045073916 | L158: 0.02068288964 | M158: -0.02389677158
A159: 4 | B159: 1.036186938 | C159: 0.009630444633 | D159: -0.02630318171 | E159: 1.042574762 | F159: 0.0157460666 | G159: -0.02641279734 | H159: 1.044295723 | I159: 0.01991053132 | J159: -0.02390914755 | K159: 1.044295723 | L159: 0.01991053132 | M159: -0.02390914755
A160: 5.5 | B160: 1.034969355 | C160: 0.00895871075 | D160: -0.0257796917 | E160: 1.040876019 | F160: 0.01453986034 | G160: -0.02595872214 | H160: 1.042540551 | I160: 0.01809574985 | J160: -0.02401031625 | K160: 1.042540551 | L160: 0.01809574985 | M160: -0.02401031625
A161: 7.5 | B161: 1.033345912 | C161: 0.008063065573 | D161: -0.02508061975 | E161: 1.038611028 | F161: 0.01293158533 | G161: -0.02535160632 | H161: 1.040200322 | I161: 0.01567604122 | J161: -0.02414577022 | K161: 1.040200322 | L161: 0.01567604122 | M161: -0.02414577022
A162: 11 | B162: 1.030504886 | C162: 0.006495686514 | D162: -0.02385425008 | E162: 1.034647295 | F162: 0.01011710407 | G162: -0.02428450172 | H162: 1.03610492 | I162: 0.01144155113 | J162: -0.02438437417 | K162: 1.03610492 | L162: 0.01144155113 | M162: -0.02438437417
A163: 15 | B163: 1.027306077 | C163: 0.004740603527 | D163: -0.02245900394 | E163: 1.030178044 | F163: 0.006953223885 | G163: -0.0230644483 | H163: 1.031480673 | I163: 0.006688717493 | J163: -0.02462723091 | K163: 1.031480673 | L163: 0.006688717493 | M163: -0.02462723091
A164: 18.5 | B164: 1.026568414 | C164: 0.004757296767 | D164: -0.0217078465 | E164: 1.028871291 | F164: 0.006443048061 | G164: -0.02228466189 | H164: 1.029844507 | I164: 0.006242260299 | J164: -0.0234558295 | K164: 1.029844507 | L164: 0.006242260299 | M164: -0.0234558295
A165: 22 | B165: 1.025830751 | C165: 0.004773990008 | D165: -0.02095671403 | E165: 1.027564538 | F165: 0.005932872237 | G165: -0.02150408453 | H165: 1.028208341 | I165: 0.005795803105 | J165: -0.02228338815 | K165: 1.028208341 | L165: 0.005795803105 | M165: -0.02228338815
A166: 30 | B166: 1.024144665 | C166: 0.004812145986 | D166: -0.01923993351 | E166: 1.024577673 | F166: 0.004766756067 | G166: -0.01971693108 | H166: 1.024468534 | I166: 0.004775329518 | J166: -0.01959960972 | K166: 1.024468534 | L166: 0.004775329518 | M166: -0.01959960972
A167: 37 | B167: 1.022669339 | C167: 0.004845532467 | D167: -0.01773785752 | E167: 1.021964166 | F167: 0.003746404419 | G167: -0.01814976546 | H167: 1.021196202 | I167: 0.00388241513 | J167: -0.01724682775 | K167: 1.021196202 | L167: 0.00388241513 | M167: -0.01724682775
A168: 45 | B168: 1.022248114 | C168: 0.004477255193 | D168: -0.01769164881 | E168: 1.020970696 | F168: 0.003493371871 | G168: -0.01741648199 | H168: 1.020557167 | I168: 0.003990620383 | J168: -0.01650069829 | K168: 1.020557167 | L168: 0.003990620383 | M168: -0.01650069829
A169: 55 | B169: 1.021783183 | C169: 0.003997114772 | D169: -0.01771525806 | E169: 1.019825939 | F169: 0.003221549544 | G169: -0.01655106971 | H169: 1.019909384 | I169: 0.004180845075 | J169: -0.01566305403 | K169: 1.019909384 | L169: 0.004180845075 | M169: -0.01566305403
A170: 75 | B170: 1.020852593 | C170: 0.003054686768 | D170: -0.01774370522 | E170: 1.017575115 | F170: 0.002692397783 | G170: -0.01484275447 | H170: 1.01865937 | I170: 0.004554368986 | J170: -0.01404105261 | K170: 1.01865937 | L170: 0.004554368986 | M170: -0.01404105261
A171: 90 | B171: 1.020127943 | C171: 0.003003957514 | D171: -0.01707270031 | E171: 1.017308818 | F171: 0.002828147757 | G171: -0.01443983228 | H171: 1.019395873 | I171: 0.004580000788 | J171: -0.01474832461 | K171: 1.019395873 | L171: 0.004580000788 | M171: -0.01474832461
A172: 110 | B172: 1.019161744 | C172: 0.00293631851 | D172: -0.01617792151 | E172: 1.016953756 | F172: 0.003009147723 | G172: -0.01390277234 | H172: 1.020377877 | I172: 0.004614176524 | J172: -0.0156912978 | K172: 1.020377877 | L172: 0.004614176524 | M172: -0.0156912978
A173: 132 | B173: 1.018098924 | C173: 0.002861915604 | D173: -0.01519352542 | E173: 1.016563187 | F173: 0.003208247685 | G173: -0.01331223024 | H173: 1.021458081 | I173: 0.004651769834 | J173: -0.01672849422 | K173: 1.021458081 | L173: 0.004651769834 | M173: -0.01672849422
A174: 150 | B174: 1.017267992 | C174: 0.00280374606 | D174: -0.01442380492 | E174: 1.016257833 | F174: 0.003363907655 | G174: -0.01285069693 | H174: 1.022302605 | I174: 0.004681160967 | J174: -0.01753933917 | K174: 1.022302605 | L174: 0.004681160967 | M174: -0.01753933917
A175: 160 | B175: 1.017267992 | C175: 0.00280374606 | D175: -0.01442380492 | E175: 1.016257833 | F175: 0.003363907655 | G175: -0.01285069693 | H175: 1.022302605 | I175: 0.004681160967 | J175: -0.01753933917 | K175: 1.022302605 | L175: 0.004681160967 | M175: -0.01753933917
A176: 185 | B176: 1.017267992 | C176: 0.00280374606 | D176: -0.01442380492 | E176: 1.016257833 | F176: 0.003363907655 | G176: -0.01285069693 | H176: 1.022302605 | I176: 0.004681160967 | J176: -0.01753933917 | K176: 1.022302605 | L176: 0.004681160967 | M176: -0.01753933917
A177: 200 | B177: 1.017267992 | C177: 0.00280374606 | D177: -0.01442380492 | E177: 1.016257833 | F177: 0.003363907655 | G177: -0.01285069693 | H177: 1.022302605 | I177: 0.004681160967 | J177: -0.01753933917 | K177: 1.022302605 | L177: 0.004681160967 | M177: -0.01753933917
A178: 220 | B178: 1.017267992 | C178: 0.00280374606 | D178: -0.01442380492 | E178: 1.016257833 | F178: 0.003363907655 | G178: -0.01285069693 | H178: 1.022302605 | I178: 0.004681160967 | J178: -0.01753933917 | K178: 1.022302605 | L178: 0.004681160967 | M178: -0.01753933917
A179: 250 | B179: 1.017267992 | C179: 0.00280374606 | D179: -0.01442380492 | E179: 1.016257833 | F179: 0.003363907655 | G179: -0.01285069693 | H179: 1.022302605 | I179: 0.004681160967 | J179: -0.01753933917 | K179: 1.022302605 | L179: 0.004681160967 | M179: -0.01753933917
A180: 300 | B180: 1.017267992 | C180: 0.00280374606 | D180: -0.01442380492 | E180: 1.016257833 | F180: 0.003363907655 | G180: -0.01285069693 | H180: 1.022302605 | I180: 0.004681160967 | J180: -0.01753933917 | K180: 1.022302605 | L180: 0.004681160967 | M180: -0.01753933917
A181: 330 | B181: 1.017267992 | C181: 0.00280374606 | D181: -0.01442380492 | E181: 1.016257833 | F181: 0.003363907655 | G181: -0.01285069693 | H181: 1.022302605 | I181: 0.004681160967 | J181: -0.01753933917 | K181: 1.022302605 | L181: 0.004681160967 | M181: -0.01753933917
A182: 375 | B182: 1.017267992 | C182: 0.00280374606 | D182: -0.01442380492 | E182: 1.016257833 | F182: 0.003363907655 | G182: -0.01285069693 | H182: 1.022302605 | I182: 0.004681160967 | J182: -0.01753933917 | K182: 1.022302605 | L182: 0.004681160967 | M182: -0.01753933917
A184: Table C1. VFD Performance Coefficienct (hp capacity)
A185: HP | B185: d | C185: e | D185: f
A186: 1 | B186: 0.9803 | C186: 0.04 | D186: -0.0131
A187: 1.5 | B187: 0.97995 | C187: 0.03855 | D187: -0.0118
A188: 2 | B188: 0.9796 | C188: 0.0371 | D188: -0.0105
A189: 3 | B189: 0.9789 | C189: 0.0342 | D189: -0.0079
A190: 5 | B190: 0.9775 | C190: 0.0284 | D190: -0.0027
A191: 7.5 | B191: 0.9781 | C191: 0.0253 | D191: -0.0004
A192: 10 | B192: 0.9787 | C192: 0.0222 | D192: 0.0019
A193: 15 | B193: 0.98185 | C193: 0.01985 | D193: 0.0007
A194: 20 | B194: 0.985 | C194: 0.0175 | D194: -0.0005
A195: 25 | B195: 0.9862 | C195: 0.0165 | D195: -0.0032
A196: 30 | B196: 0.9874 | C196: 0.0155 | D196: -0.0059
A197: 40 | B197: 0.98765 | C197: 0.01695 | D197: -0.0038
A198: 50 | B198: 0.9879 | C198: 0.0184 | D198: -0.0017
A199: 60 | B199: 0.9719 | C199: 0.0145 | D199: 0.0118
A200: 75 | B200: 0.9919 | C200: 0.0179 | D200: -0.0013
A201: 100 | B201: 0.9824 | C201: 0.0126 | D201: 0.0014
A202: 125 | B202: 0.982925 | C202: 0.0119 | D202: -0.0001
A203: 150 | B203: 0.98345 | C203: 0.0112 | D203: -0.0016
A204: 200 | B204: 0.9845 | C204: 0.0098 | D204: -0.0046
A205: 250 | B205: 0.9845 | C205: 0.0098 | D205: -0.0046
A206: 300 | B206: 0.9845 | C206: 0.0098 | D206: -0.0046
... 260 more rows

Sheet AMCA 208 Tables (hidden)
E2: FEPref Constants, section 5.2
E3: Q0 | F3: 250
E4: P0 | F4: 0.4
E5: η0,Total | F5: 0.66
E6: η0,Static | F6: 0.6
E8: Ref Mtr Constants, section 5.2
E9: A | F9: -0.0038
E10: B | F10: 0.0258
E11: C | F11: -0.0726
E12: D | F12: 0.1256
E13: E | F13: 0.8503
A15: AMCA 208 Annex A, Table A.2 (draft, for lookup)
A16: Fan Category | B16: Housing Type | C16: Impeller Type | D16: Test Standard | E16: Test Config/ Installation Type | F16: FEI Pressure Basis | G16: Notes
A17: Centrifugal Housed | B17: SW or DW Scroll (not inline) | C17: AF, BC, BI, MF, FC, Radial, Radial Tipped | D17: AMCA 210, ISO 5801 | E17: B or D | F17: Total | G17: 1
A18: Centrifugal Inline | B18: Square, Rect, Cylindrical | C18: AF, BC, BI, MF, FC | D18: AMCA 210, ISO 5801 | E18: B or D | F18: Total | G18: 1
A19: Centrifugal Unhoused | B19: None | C19: AF, BC, BI, MF | D19: AMCA 210, ISO 5801 | E19: A | F19: Static | G19: 2
A20: Centrifugal PRV Exhaust | B20: Spun Alum, Upblast, Hooded, Wall Housing | C20: AF, BC, BI, MF, FC | D20: AMCA 210, ISO 5801 | E20: A or C | F20: Static | G20: 3
A21: Centrifugal PRV Supply | B21: Hooded or otherwise enclosed | C21: AF, BC, BI, MF, FC | D21: AMCA 210, ISO 5801 | E21: B or D | F21: Total | G21: 3
A22: Axial Inline | B22: Cylindrical | C22: Propeller | D22: AMCA 210, ISO 5801 | E22: B or D | F22: Total | G22: 1
A23: Axial Panel | B23: Panel, Ring | C23: Propeller | D23: AMCA 210, ISO 5801 | E23: A | F23: Static
A24: Axial PRV | B24: Sup & Ex, Spun Alum, Upblast, Hooded, Wall Housing | C24: Propeller | D24: AMCA 210, ISO 5801 | E24: A or C | F24: Static
A25: Laboratory Exhaust | B25: High Velocity Discharge, Induced Flow | C25: Any | D25: AMCA 210, AMCA 260, ISO 5801 | E25: A or C | F25: Total | G25: 4,5
A26: Jet Fan | B26: Unidirectional, Reversible | C26: Propeller or AF, BC, BI | D26: AMCA 250, | E26: E | F26: Total | G26: 4,6
A27: Circulating | B27: Cylindrical, Panel, Unhoused | C27: Propeller | D27: AMCA 230 | E27: E | F27: Total | G27: 4,7
A30: AMCA 208 Annex A, Table A.2 (draft, complete)

Sheet PSW_Sheet (hidden)
